bitfinex/quotes_SOLUSD_20260103
["timestamp","ask_amount","ask_price","bid_price","bid_amount"]
[1767453286375,2.83934513,131.57,131.55,0.68510392]
[1767453288185,2.83934513,131.56,131.55,0.68510392]
[1767453289792,2.83934513,131.56,131.53,21.46265033]
[1767453291992,2.83934513,131.56,131.54,0.68510392]
[1767453292690,3.41958801,131.56,131.53,22.14775425]
[1767453292884,3.41958801,131.56,131.54,0.68510392]
[1767453293190,3.41958801,131.56,131.53,22.14775425]
[1767453296586,2.83934513,131.55,131.53,8.28775425]
[1767453296788,2.94315755,131.55,131.53,0.68510392]
[1767453297094,2.83934513,131.55,131.53,0.68510392]
[1767453300004,3.42444905,131.56,131.53,8.2875698]
[1767453300980,2.83934513,131.55,131.53,8.2875698]
[1767453301175,0.10381242,131.53,131.5,61.89709859]
[1767453301394,3.41482371,131.52,131.49,8.30183254]
[1767453301599,2.83934513,131.51,131.49,8.30183254]
[1767453303000,3.41482371,131.52,131.49,8.30183254]
[1767453303376,2.83934513,131.51,131.49,8.30183254]
[1767453304297,2.83934513,131.51,131.49,0.69709859]
[1767453304501,2.83934513,131.5,131.48,22.18259438]
[1767453305787,2.83934513,131.5,131.48,0.69709859]
[1767453308080,0.11315188,131.49,131.47,7.60609616]
[1767453308279,2.95249701,131.49,131.46,22.1837539]
[1767453308487,2.95249701,131.49,131.47,0.69709859]
[1767453308781,2.83934513,131.48,131.46,8.3037539]
[1767453308991,2.80934513,131.48,131.46,8.3037539]
[1767453310106,3.42444905,131.49,131.46,8.3037539]
[1767453310502,2.93834513,131.48,131.45,8.30434666]
[1767453313788,0.099,131.48,131.45,8.30434666]
[1767453314103,0.58510392,131.5,131.46,0.69709859]
[1767453314290,3.42444905,131.5,131.46,0.69709859]
[1767453314489,2.83934513,131.49,131.46,0.69709859]
[1767453314691,2.93834513,131.49,131.46,0.69709859]
[1767453315591,2.93834513,131.49,131.46,8.30377362]
[1767453316431,0.58024288,131.48,131.46,7.60667503]
[1767453317824,3.41958801,131.48,131.45,8.30436504]
[1767453318217,0.58024288,131.48,131.45,8.30436504]
[1767453321224,0.48024288,131.47,131.44,21.48783297]
[1767453321407,0.48024288,131.47,131.44,22.18493156]
[1767453321612,2.93834513,131.46,131.43,8.30548497]
[1767453321807,0.47643045,131.45,131.43,8.30548497]
[1767453322007,0.47643045,131.45,131.43,7.60838638]
[1767453324523,0.099,131.46,131.43,8.30548497]
[1767453327906,0.47643045,131.45,131.43,8.30548497]
[1767453329406,0.47643045,131.45,131.43,7.60838638]
[1767453330221,0.47643045,131.45,131.43,8.28706768]
[1767453336040,3.31958801,131.46,131.43,8.28706768]
[1767453336615,2.30123971,131.46,131.43,8.28706768]
[1767453337430,0.099,131.45,131.43,7.60838638]
[1767453339337,1.82099683,131.44,131.41,8.28832603]
[1767453340015,1.82099683,131.44,131.42,0.6786813]
[1767453340534,1.82099683,131.43,131.42,0.6786813]
[1767453340835,1.82099683,131.43,131.41,8.28832603]
[1767453341038,1.82099683,131.43,131.41,7.60964473]
[1767453341208,1.82099683,131.43,131.41,8.28832603]
[1767453341409,1.82099683,131.43,131.41,0.6786813]
[1767453346347,1.82099683,131.43,131.4,8.28903036]
[1767453346738,7.60772643,131.45,131.4,8.28903036]
[1767453346913,1.82099683,131.43,131.4,8.28903036]
[1767453347110,1.82099683,131.41,131.39,7.61088029]
[1767453347411,26.62636469,131.45,131.38,7.61115704]
[1767453347611,1.82099683,131.4,131.38,7.61115704]
[1767453350345,1.82099683,131.42,131.38,0.6786813]
[1767453351028,1.82099683,131.43,131.38,0.6786813]
[1767453351336,1.82099683,131.43,131.39,0.6786813]
[1767453352020,7.60746886,131.45,131.38,14.5586813]
[1767453352222,1.82099683,131.42,131.39,0.6786813]
[1767453353141,1.82099683,131.42,131.39,8.28939561]
[1767453355239,7.60746886,131.45,131.39,8.28939561]
[1767453355432,1.82099683,131.42,131.39,8.28939561]
[1767453356645,1.82099683,131.43,131.39,8.28939561]
[1767453356842,1.82099683,131.46,131.39,8.28939561]
[1767453356843,1.82099683,131.44,131.4,0.6786813]
[1767453358144,1.82099683,131.44,131.41,7.60977094]
[1767453359438,1.82099683,131.45,131.41,7.60977094]
[1767453359736,1.82099683,131.45,131.41,8.28845224]
[1767453359944,1.82099683,131.44,131.41,8.28845224]
[1767453360545,1.82099683,131.44,131.42,0.69558331]
[1767453360746,1.82099683,131.45,131.42,0.69558331]
[1767453361545,7.60649927,131.47,131.42,0.69558331]
[1767453361734,7.60587985,131.48,131.42,0.69558331]
[1767453361934,1.82099683,131.47,131.42,0.69558331]
[1767453363230,1.82099683,131.47,131.44,0.69558331]
[1767453365059,1.82099683,131.47,131.45,0.69558331]
[1767453365266,1.82099683,131.46,131.45,0.63558334]
[1767453365440,1.82099683,131.47,131.45,0.63558334]
[1767453367468,0.05999997,131.48,131.45,0.63558334]
[1767453367770,1.82099683,131.47,131.45,0.63558334]
[1767453368655,1.82099683,131.47,131.44,8.30360341]
[1767453369774,7.60533934,131.49,131.45,0.69558331]
[1767453370073,1.82099683,131.47,131.45,0.69558331]
[1767453372270,1.82099683,131.47,131.45,0.63558335]
[1767453373872,0.05999997,131.49,131.45,0.63558335]
[1767453374073,1.82099683,131.47,131.45,0.63558335]
[1767453378578,7.60573222,131.48,131.45,0.63558335]
[1767453379065,1.82099683,131.47,131.45,0.63558335]
[1767453379966,1.82099683,131.47,131.45,0.57558339]
[1767453381478,7.78529695,131.49,131.45,0.57558339]
[1767453381775,7.78530054,131.49,131.45,0.57558339]
[1767453381984,1.82099683,131.48,131.45,0.57558339]
[1767453384279,1.91999683,131.48,131.45,0.57558339]
[1767453385472,1.82099683,131.48,131.45,0.57558339]
[1767453387877,1.82099683,131.48,131.45,0.51558341]
[1767453388277,1.97939681,131.48,131.45,0.51558341]
[1767453389378,1.82099683,131.47,131.45,0.51558341]
[1767453389753,1.82099683,131.48,131.44,7.60780145]
[1767453389957,7.60530065,131.49,131.45,0.71039858]
[1767453390277,1.82099683,131.47,131.45,0.71039858]
[1767453391278,8.01127122,131.49,131.45,0.71039858]
[1767453391478,1.82099683,131.47,131.45,0.71039858]
[1767453391778,9.42734259,131.47,131.45,0.71039858]
[1767453396481,10.45157027,131.47,131.45,0.71039858]
[1767453398180,7.60634576,131.47,131.45,0.71039858]
[1767453398380,3.50015309,131.5,131.45,0.71039858]
[1767453399275,2.84522451,131.49,131.46,0.70237019]
[1767453410197,8.25984478,131.5,131.46,0.70237019]
[1767453410371,2.84522451,131.49,131.46,0.70237019]
[1767453411789,3.25119508,131.49,131.46,0.70237019]
[1767453417084,2.84522451,131.48,131.46,0.70237019]
[1767453420983,2.84522451,131.49,131.47,0.68840512]
[1767453421183,3.52787181,131.49,131.47,0.68840512]
[1767453421597,2.84522451,131.49,131.47,0.68840512]
[1767453421796,0.68575023,131.51,131.48,0.68840512]
[1767453421998,2.84522451,131.5,131.48,0.62840513]
[1767453422392,3.53097474,131.5,131.48,0.62840513]
[1767453424312,0.68575023,131.5,131.48,0.62840513]
[1767453425909,3.53097474,131.5,131.48,0.62840513]
[1767453426806,3.53097474,131.5,131.48,0.57982824]
[1767453429305,3.53097474,131.5,131.47,0.68840512]
[1767453430804,11.13559711,131.5,131.47,0.68840512]
[1767453431010,0.68575023,131.48,131.45,8.29584368]
[1767453431812,0.68575023,131.48,131.46,0.68840512]
[1767453433610,0.68575023,131.48,131.45,0.68840512]
[1767453433909,3.53097474,131.48,131.45,0.68840512]
[1767453435412,0.68575023,131.48,131.45,0.68840512]
[1767453436713,3.53097474,131.48,131.45,0.68840512]
[1767453438989,0.68575023,131.48,131.45,0.68840512]
[1767453446518,0.68575023,131.48,131.45,8.29570468]
[1767453447900,0.68575023,131.48,131.46,0.68840512]
[1767453449720,0.68575023,131.49,131.47,0.67563038]
[1767453449906,0.68575023,131.49,131.46,7.60655044]
[1767453450113,0.68575023,131.49,131.46,8.28218082]
[1767453453720,3.53097474,131.49,131.46,8.28218082]
[1767453457230,0.68575023,131.49,131.46,8.28218082]
[1767453457631,3.53220745,131.5,131.47,0.66870821]
[1767453458328,0.68698294,131.49,131.47,0.66870821]
[1767453459432,0.68698294,131.49,131.46,8.27525865]
[1767453467939,0.68698294,131.49,131.46,7.60655044]
[1767453469038,0.68698294,131.49,131.46,0.66870821]
[1767453471041,0.68698294,131.49,131.46,8.27532341]
[1767453479246,0.68698294,131.49,131.46,7.6066152]
[1767453479450,0.68698294,131.49,131.45,21.48717899]
[1767453479950,0.68698294,131.49,131.45,24.02934647]
[1767453480134,0.68698294,131.49,131.46,0.72209907]
[1767453480725,0.68698294,131.49,131.46,2.54216748]
[1767453481028,0.68698294,131.49,131.46,0.72209907]
[1767453481448,0.68698294,131.49,131.46,8.32853191]
[1767453487132,0.68698294,131.49,131.47,0.72209907]
[1767453488254,0.68698294,131.49,131.47,0.66209909]
[1767453489557,0.68698294,131.49,131.46,7.60643284]
[1767453490234,0.68698294,131.49,131.47,0.72209907]
[1767453495165,0.68698294,131.49,131.46,8.32853191]
[1767453496574,0.68698294,131.49,131.47,0.72209907]
[1767453499360,0.68698294,131.49,131.46,8.32853191]
[1767453499749,0.68698294,131.49,131.47,0.72209907]
[1767453500260,0.68698294,131.49,131.46,7.60643284]
[1767453500466,0.68698294,131.49,131.46,8.32853191]
[1767453501253,0.68698294,131.49,131.47,0.72209907]
[1767453503670,0.68698294,131.49,131.46,8.32853191]
[1767453504071,0.68698294,131.49,131.46,0.72209907]
[1767453506154,0.68698294,131.49,131.45,21.48720412]
[1767453506478,0.68698294,131.49,131.46,0.72209907]
[1767453508876,0.68698294,131.49,131.45,22.20930319]
[1767453509173,0.68698294,131.49,131.46,0.72209907]
[1767453519381,0.68698294,131.49,131.45,21.48720412]
[1767453519592,0.68698294,131.49,131.45,22.17237593]
[1767453519768,0.68698294,131.49,131.46,0.68517181]
[1767453525892,0.71766291,131.48,131.45,22.17237593]
[1767453526193,0.71766291,131.48,131.45,14.56517181]
[1767453526595,0.71766291,131.49,131.46,0.68517181]
[1767453527699,3.56143568,131.49,131.46,0.68517181]
[1767453529001,0.71766291,131.48,131.46,0.68517181]
[1767453529782,3.56143568,131.49,131.46,0.68517181]
[1767453529981,0.71766291,131.49,131.46,0.68517181]
[1767453539706,0.71766291,131.49,131.46,14.56517181]
[1767453542103,0.71766291,131.49,131.46,13.88]
[1767453542407,0.71766291,131.49,131.46,14.57808432]
[1767453545219,0.71766291,131.49,131.47,0.69808432]
[1767453545515,0.69557273,131.5,131.47,0.69808432]
[1767453545682,0.69557273,131.49,131.46,13.88]
[1767453546180,0.69557273,131.49,131.46,14.57808432]
[1767453554919,0.69557273,131.49,131.47,0.69808432]
[1767453555811,0.69557273,131.49,131.46,14.57808432]
[1767453557717,0.56175695,131.51,131.48,0.69808432]
[1767453558800,0.56175695,131.51,131.47,7.6060493]
[1767453559204,0.46175695,131.5,131.46,13.88]
[1767453559517,0.46175695,131.5,131.46,14.57808432]
[1767453560314,0.46175695,131.5,131.46,22.18489516]
[1767453560516,0.46175695,131.5,131.47,8.30423648]
[1767453561104,0.46175695,131.5,131.47,7.60615216]
[1767453562113,0.46175695,131.5,131.47,8.30423648]
[1767453563120,0.46175695,131.51,131.48,0.69808432]
[1767453566122,3.30552972,131.52,131.48,0.69808432]
[1767453566330,3.30552972,131.52,131.49,0.69808432]
[1767453567007,2.84377277,131.53,131.49,0.69808432]
[1767453567203,3.30552972,131.53,131.49,0.69808432]
[1767453567397,2.84377277,131.53,131.5,0.69808432]
[1767453567709,3.30190215,131.53,131.5,0.63808432]
[1767453574626,0.45812938,131.53,131.5,0.63808432]
[1767453575127,3.36552972,131.54,131.5,0.63808432]
[1767453575522,0.52175695,131.54,131.5,0.63808432]
[1767453575826,3.36552972,131.55,131.51,0.71014528]
[1767453577522,0.52175695,131.55,131.52,0.71014528]
[1767453577731,0.52175695,131.55,131.52,0.65014528]
[1767453577929,2.84377277,131.56,131.52,0.65014528]
[1767453578128,3.42552972,131.56,131.52,0.65014528]
[1767453579533,0.58175695,131.56,131.52,0.65014528]
[1767453580343,0.58175695,131.56,131.53,0.71014528]
[1767453581034,2.39999035,131.57,131.53,0.71014528]
[1767453581915,0.58175695,131.57,131.53,0.71014528]
[1767453582227,2.39999035,131.57,131.54,0.71014528]
[1767453584844,2.39575678,131.55,131.52,13.88]
[1767453585044,2.39160746,131.53,131.48,7.60569763]
[1767453585264,2.39160746,131.53,131.49,13.88]
[1767453585746,1.8182334,131.52,131.49,13.88]
[1767453586847,1.8182334,131.52,131.5,0.71014528]
[1767453587247,2.39160746,131.53,131.5,0.71014528]
[1767453593658,0.57337406,131.53,131.5,0.71014528]
[1767453593849,2.39160746,131.53,131.5,0.71014528]
[1767453601589,0.57337406,131.53,131.5,0.71014528]
[1767453601879,2.39160746,131.53,131.5,0.71014528]
[1767453604569,1.8182334,131.54,131.5,0.71014528]
[1767453604755,10.06184457,131.55,131.5,0.71014528]
[1767453606068,10.06184457,131.55,131.51,0.68615262]
[1767453608005,8.2430618,131.56,131.51,0.68615262]
[1767453608298,10.0612952,131.56,131.52,0.68615262]
[1767453608606,0.099,131.55,131.52,0.68615262]
[1767453608961,1.9172334,131.55,131.52,0.68615262]
[1767453611886,1.8182334,131.55,131.52,0.68615262]
[1767453613387,0.64175695,131.56,131.52,0.68615262]
[1767453613884,2.45999035,131.56,131.52,8.28948713]
[1767453614187,2.45999035,131.56,131.53,0.68615262]
[1767453615197,2.45999035,131.56,131.54,0.68615262]
[1767453615198,1.8182334,131.56,131.54,0.68615262]
[1767453617002,0.64175695,131.57,131.54,0.68615262]
[1767453617299,2.45999035,131.57,131.54,0.68615262]
[1767453617995,1.8182334,131.57,131.54,0.68615262]
[1767453618506,1.8182334,131.57,131.55,0.68615262]
[1767453618673,2.50575419,131.58,131.54,21.48203956]
[1767453619078,0.68752079,131.58,131.55,7.60166646]
[1767453620600,0.68752079,131.58,131.55,8.28781908]
[1767453620778,0.68752079,131.58,131.56,0.68615262]
[1767453622393,2.50575419,131.59,131.56,0.68615262]
[1767453623979,1.8182334,131.59,131.57,0.68615262]
[1767453624301,2.50575419,131.6,131.57,0.62615263]
[1767453624503,0.68752079,131.6,131.57,0.62615263]
[1767453624698,2.50575419,131.6,131.57,0.62615263]
[1767453625502,0.68752079,131.6,131.57,0.62615263]
[1767453625698,2.50575419,131.6,131.57,0.62615263]
[1767453625880,0.68752079,131.59,131.56,7.601012]
[1767453626201,0.68752079,131.59,131.56,8.28716462]
[1767453626611,0.68752079,131.59,131.56,7.601012]
[1767453628002,0.68752079,131.59,131.56,8.28716462]
[1767453628198,0.68752079,131.59,131.57,0.68615262]
[1767453631498,2.54192713,131.61,131.57,0.68615262]
[1767453631694,0.72369373,131.6,131.57,8.28661633]
[1767453632102,0.72369373,131.6,131.57,22.16661633]
[1767453636315,0.72369373,131.6,131.57,21.48046371]
[1767453638816,0.72369373,131.6,131.57,22.18300623]
[1767453641023,2.54192713,131.6,131.57,14.58254252]
[1767453642618,3.563036,131.6,131.57,14.58254252]
[1767453645523,0.72369373,131.59,131.57,14.58254252]
[1767453649925,0.72369373,131.6,131.57,14.58254252]
[1767453655414,0.72369373,131.6,131.57,13.88]
[1767453658025,0.72369373,131.6,131.57,21.48050396]
[1767453658538,0.72369373,131.6,131.57,22.18304648]
[1767453660634,0.66729071,131.62,131.58,8.31060776]
[1767453660819,0.66729071,131.62,131.59,0.71089379]
[1767453661634,3.50663298,131.62,131.59,0.71089379]
[1767453661939,0.66729071,131.62,131.59,0.71089379]
[1767453667840,3.50663298,131.62,131.59,0.71089379]
[1767453668338,0.66729071,131.62,131.59,0.71089379]
[1767453669748,11.1037495,131.63,131.59,0.71089379]
[1767453669936,3.50663298,131.63,131.59,0.71089379]
[1767453670136,0.66729071,131.62,131.59,0.71089379]
[1767453674051,0.66729071,131.63,131.6,0.71089379]
[1767453674439,0.66729071,131.62,131.6,0.71089379]
[1767453680561,0.66729071,131.63,131.6,0.71089379]
[1767453681157,0.66729071,131.64,131.61,0.71089379]
[1767453683671,0.66729071,131.65,131.62,0.71089379]
[1767453684059,3.50663298,131.65,131.62,0.71089379]
[1767453684565,0.66729071,131.64,131.61,0.71089379]
[1767453685874,0.66729071,131.64,131.62,0.71089379]
[1767453688284,0.66729071,131.65,131.62,0.71089379]
[1767453690985,2.83934227,131.66,131.62,0.71089379]
[1767453691189,0.68695958,131.66,131.62,0.71089379]
[1767453695889,0.68695958,131.65,131.62,0.71089379]
[1767453698492,0.68695958,131.64,131.6,22.15430105]
[1767453698696,0.68695958,131.63,131.6,22.15430105]
[1767453699493,0.68695958,131.63,131.6,14.55559489]
[1767453702799,0.68695958,131.63,131.61,0.69559489]
[1767453706104,0.68695958,131.63,131.6,16.37178876]
[1767453707202,0.68695958,131.63,131.61,0.69559489]
[1767453707802,0.68695958,131.63,131.6,16.37178876]
[1767453708778,0.68695958,131.63,131.61,0.69559489]
[1767453711812,0.68695958,131.64,131.61,0.69559489]
[1767453715013,10.0992962,131.65,131.61,0.69559489]
[1767453716617,8.28310233,131.65,131.61,0.69559489]
[1767453716917,10.0992962,131.65,131.61,0.69559489]
[1767453718316,0.68695958,131.65,131.62,0.69559489]
[1767453719518,10.09860999,131.66,131.62,0.69559489]
[1767453719818,8.28241612,131.66,131.62,0.69559489]
[1767453720020,0.68695958,131.66,131.62,0.69559489]
[1767453720518,0.72331235,131.67,131.63,0.71865302]
[1767453720720,2.53950622,131.67,131.63,0.71865302]
[1767453721799,10.13425455,131.67,131.63,0.71865302]
[1767453722324,2.53950622,131.67,131.63,0.71865302]
[1767453722506,0.72331235,131.67,131.64,0.71865302]
[1767453722698,10.13328156,131.69,131.64,0.71865302]
[1767453722897,2.53950622,131.68,131.64,0.71865302]
[1767453724000,0.72331235,131.68,131.64,0.71865302]
[1767453724307,2.53950622,131.68,131.64,0.71865302]
[1767453724509,2.53950622,131.68,131.65,0.71865302]
[1767453725222,2.53950622,131.68,131.64,7.59637238]
[1767453725223,0.72331235,131.7,131.67,0.71865302]
[1767453725429,7.59757736,131.72,131.67,0.71865302]
[1767453725430,0.72331235,131.71,131.68,0.71865302]
[1767453727199,0.72331235,131.72,131.69,0.71865302]
[1767453727409,2.53950622,131.71,131.68,0.71865302]
[1767453728624,0.72331235,131.7,131.68,0.71865302]
[1767453729028,0.72331235,131.71,131.68,0.71865302]
[1767453735730,2.53950622,131.72,131.68,0.71865302]
[1767453738329,0.72331235,131.72,131.68,0.71865302]
[1767453738532,2.53950622,131.72,131.68,0.71865302]
[1767453739029,0.72331235,131.72,131.68,0.71865302]
[1767453739334,2.53950622,131.72,131.68,0.71865302]
[1767453741235,0.72331235,131.72,131.68,0.71865302]
[1767453741530,2.53950622,131.72,131.68,0.71865302]
[1767453741730,10.13161852,131.72,131.68,0.71865302]
[1767453742143,1.81619387,131.71,131.68,0.71865302]
[1767453742607,1.81619387,131.71,131.66,23.27127636]
[1767453742608,10.13201861,131.71,131.66,13.86]
[1767453742926,2.53950622,131.7,131.67,14.57865302]
[1767453745039,10.13252919,131.7,131.67,14.57865302]
[1767453745738,2.53950622,131.69,131.67,14.57865302]
[1767453745921,1.81619387,131.68,131.66,0.71865302]
[1767453746234,2.53950622,131.68,131.66,0.71865302]
[1767453746538,2.53950622,131.68,131.65,0.71865302]
[1767453746539,1.81619387,131.67,131.65,0.71865302]
[1767453746839,0.72331235,131.68,131.65,0.71865302]
[1767453747020,1.81619387,131.67,131.65,0.71865302]
[1767453747629,2.53950622,131.67,131.65,0.71865302]
[1767453747822,2.53950622,131.67,131.64,14.57865302]
[1767453748030,2.53950622,131.67,131.65,0.71865302]
[1767453748946,0.72331235,131.66,131.64,13.86]
[1767453749149,0.72331235,131.65,131.64,13.02378741]
[1767453749329,2.53950622,131.65,131.64,13.02378741]
[1767453750032,2.53950622,131.65,131.62,0.71865302]
[1767453750849,2.43950622,131.64,131.61,14.54224743]
[1767453751019,1.81619387,131.63,131.61,14.54224743]
[1767453751353,1.91519387,131.63,131.6,0.68224743]
[1767453751925,0.099,131.63,131.6,0.68224743]
[1767453752126,1.91519387,131.63,131.6,0.68224743]
[1767453760151,0.099,131.63,131.6,0.68224743]
[1767453765164,3.46099105,131.64,131.6,0.68224743]
[1767453765667,0.099,131.63,131.6,0.68224743]
[1767453767159,0.06900001,131.63,131.6,0.68224743]
[1767453768750,2.8376787,131.64,131.61,0.68224743]
[1767453769258,3.43099106,131.64,131.61,0.68224743]
[1767453777771,0.59331236,131.65,131.62,0.68224743]
[1767453777983,3.43099106,131.65,131.62,0.68224743]
[1767453779971,0.59331236,131.65,131.62,8.27978111]
[1767453780172,3.43099106,131.65,131.62,8.27978111]
[1767453782373,0.58836923,131.63,131.6,14.58323154]
[1767453782675,3.43099106,131.64,131.61,0.72323154]
[1767453787679,0.59331236,131.64,131.61,0.72323154]
[1767453787879,3.43099106,131.64,131.61,0.72323154]
[1767453789874,0.59331236,131.64,131.61,0.72323154]
[1767453793583,0.59331236,131.65,131.61,0.72323154]
[1767453795493,0.099,131.64,131.61,0.72323154]
[1767453796496,3.43099106,131.65,131.61,0.72323154]
[1767453797390,0.099,131.64,131.61,0.72323154]
[1767453799403,2.8376787,131.65,131.61,0.72323154]
[1767453799701,3.43099106,131.65,131.61,0.72323154]
[1767453800901,3.43099106,131.65,131.62,0.72323154]
[1767453801081,0.59331236,131.65,131.62,0.72323154]
[1767453803301,0.59331236,131.66,131.63,0.72323154]
[1767453803494,3.43099106,131.67,131.63,0.72323154]
[1767453804907,0.099,131.66,131.63,0.72323154]
[1767453805080,2.9366787,131.66,131.63,0.72323154]
[1767453808711,3.42604793,131.65,131.62,0.72323154]
[1767453808887,2.94157239,131.64,131.62,0.72323154]
[1767453810509,2.8376787,131.63,131.61,0.68425449]
[1767453810701,2.8376787,131.62,131.6,14.54425449]
[1767453812089,2.8376787,131.62,131.6,0.68425449]
[1767453812600,2.9463687,131.62,131.59,0.68425449]
[1767453812810,3.41645483,131.61,131.58,14.54425449]
[1767453816696,3.41645483,131.61,131.57,0.68425449]
[1767453816697,2.95106956,131.6,131.57,0.68425449]
[1767453819709,2.8376787,131.59,131.57,0.68425449]
[1767453826522,1.81739906,131.59,131.57,0.68425449]
[1767453827231,1.93078992,131.6,131.57,0.68425449]
[1767453831329,0.11339086,131.6,131.57,0.68425449]
[1767453831631,1.93078992,131.6,131.57,0.68425449]
[1767453835742,1.81739906,131.59,131.57,0.68425449]
[1767453836524,1.93078992,131.6,131.57,0.68425449]
[1767453836944,1.81739906,131.59,131.57,0.68425449]
[1767453837546,1.93078992,131.6,131.57,0.68425449]
[1767453838348,9.52957439,131.6,131.57,0.68425449]
[1767453838841,1.81739906,131.59,131.57,0.68425449]
[1767453841259,1.93539723,131.58,131.55,0.70816152]
[1767453843850,1.93539723,131.58,131.54,13.86]
[1767453843851,2.3869601,131.57,131.54,14.56816152]
[1767453844733,1.81739906,131.57,131.55,0.70816152]
[1767453845728,1.91639906,131.57,131.54,14.56816152]
[1767453847353,0.099,131.57,131.55,0.70816152]
[1767453847536,1.91639906,131.57,131.55,0.70816152]
[1767453848256,1.91639906,131.57,131.54,14.56816152]
[1767453848653,2.40576829,131.56,131.53,0.70816152]
[1767453849557,10.00702372,131.56,131.53,0.70816152]
[1767453849766,1.81739906,131.55,131.53,0.70816152]
[1767453853666,10.00702372,131.56,131.53,0.70816152]
[1767453857666,8.1937021,131.58,131.53,0.70816152]
[1767453857844,9.41691641,131.59,131.54,0.70816152]
[1767453858044,9.41691641,131.59,131.55,0.70816152]
[1767453859052,9.51591641,131.59,131.55,0.70816152]
[1767453860667,1.81739906,131.58,131.55,0.70816152]
[1767453860972,9.51591641,131.59,131.55,0.70816152]
[1767453861655,1.91639906,131.59,131.56,0.70816152]
[1767453864964,1.81739906,131.59,131.56,0.70816152]
[1767453870173,8.19216483,131.6,131.56,0.70816152]
[1767453870374,1.81739906,131.59,131.56,0.70816152]
[1767453873171,10.00956389,131.6,131.56,0.70816152]
[1767453877778,0.099,131.59,131.56,0.70816152]
[1767453881582,10.00956389,131.6,131.56,0.70816152]
[1767453882887,8.19216483,131.6,131.56,0.70816152]
[1767453883076,10.00956389,131.6,131.56,0.70816152]
[1767453885187,2.41071142,131.6,131.57,0.71882258]
[1767453888592,3.43276315,131.6,131.57,0.71882258]
[1767453890094,3.43276315,131.61,131.58,0.71882258]
[1767453892992,2.83945079,131.61,131.58,0.71882258]
[1767453893293,2.93845079,131.61,131.58,0.71882258]
[1767453895398,0.58836923,131.6,131.58,0.71882258]
[1767453895581,3.42782002,131.6,131.58,0.71882258]
[1767453896400,3.42782002,131.6,131.57,0.71882258]
[1767453897795,2.94334448,131.59,131.56,0.71882258]
[1767453898399,2.83945079,131.59,131.56,0.71882258]
[1767453899102,2.93845079,131.59,131.56,0.71882258]
[1767453899420,0.099,131.59,131.56,0.71882258]
[1767453900106,3.43276315,131.6,131.56,0.71882258]
[1767453900301,0.099,131.59,131.56,0.71882258]
[1767453901092,11.03164072,131.6,131.56,0.71882258]
[1767453903011,0.59331236,131.6,131.57,0.6934631]
[1767453903614,3.43276315,131.61,131.57,0.6934631]
[1767453904111,0.099,131.6,131.57,0.6934631]
[1767453904916,3.43276315,131.61,131.57,0.6934631]
[1767453905897,0.099,131.6,131.57,0.6934631]
[1767453908699,0.59331236,131.62,131.59,0.6934631]
[1767453912631,3.43276315,131.62,131.59,0.6934631]
[1767453912928,0.59331236,131.62,131.59,0.6934631]
[1767453913739,0.58836923,131.6,131.58,14.5534631]
[1767453913899,0.58836923,131.6,131.58,0.6934631]
[1767453914402,0.58836923,131.6,131.57,0.6934631]
[1767453914731,3.42782002,131.6,131.57,0.6934631]
[1767453917524,0.58352448,131.58,131.56,13.86]
[1767453917831,0.58352448,131.58,131.56,0.6934631]
[1767453920128,3.42297527,131.58,131.56,0.6934631]
[1767453920637,0.10869,131.57,131.54,14.5534631]
[1767453920813,2.94814079,131.57,131.54,14.5534631]
[1767453921013,0.10869,131.57,131.55,0.6934631]
[1767453921223,11.03271002,131.58,131.55,0.6934631]
[1767453923541,8.19325923,131.58,131.55,0.6934631]
[1767453923744,11.03271002,131.58,131.55,0.6934631]
[1767453923941,0.59331236,131.58,131.55,0.6934631]
[1767453924543,11.03225884,131.59,131.55,0.6934631]
[1767453924911,3.43276315,131.61,131.57,0.6934631]
[1767453925116,0.59331236,131.61,131.58,0.6934631]
[1767453929247,3.43276315,131.61,131.58,0.6934631]
[1767453929461,2.93845079,131.6,131.57,14.5534631]
[1767453931045,10.53756587,131.6,131.57,14.5534631]
[1767453931231,0.58836923,131.59,131.57,13.86]
[1767453931537,0.58836923,131.59,131.56,0.68542186]
[1767453931744,3.42782002,131.59,131.56,0.68542186]
[1767453932946,0.10389369,131.58,131.55,14.54542186]
[1767453933655,0.10389369,131.58,131.56,0.68542186]
[1767453934152,11.03217157,131.59,131.56,0.68542186]
[1767453934471,0.59331236,131.59,131.56,0.68542186]
[1767453935142,11.03167048,131.6,131.56,0.68542186]
[1767453936851,8.19221969,131.6,131.56,0.68542186]
[1767453937152,11.03167048,131.6,131.56,0.68542186]
[1767453938351,0.099,131.59,131.56,0.68542186]
[1767453942856,2.93845079,131.59,131.56,0.68542186]
[1767453946067,8.19094189,131.62,131.57,0.68542186]
[1767453946354,10.43708032,131.62,131.58,0.68542186]
[1767453946533,11.02544955,131.62,131.58,0.68542186]
[1767453947538,3.42782002,131.62,131.59,0.68542186]
[1767453947739,2.83945079,131.62,131.59,0.68542186]
[1767453948138,11.02995103,131.63,131.59,0.68542186]
[1767453948542,10.00697917,131.63,131.59,0.68542186]
[1767453949637,2.40979129,131.63,131.59,0.68542186]
[1767453951067,0.59331236,131.63,131.6,0.68542186]